bitfinex/quotes_ETHUSD_20241119
["timestamp","ask_amount","ask_price","bid_price","bid_amount"]
[1732045306471,1.008103,3133.6,3133.1,0.31917]
[1732045306793,3.19124,3133.6,3133.1,0.31917]
[1732045307004,3.19107,3133.8,3133.1,0.31916]
[1732045307150,0.55,3133.7,3133.1,0.31916]
[1732045307557,3.1912,3133.7,3133.2,0.31915]
[1732045307795,3.0,3133.5,3133.1,0.31917]
[1732045308091,6.90723973,3133.7,3133.2,0.31915]
[1732045308296,3.0,3133.7,3133.3,0.7616]
[1732045308595,3.0,3133.8,3133.3,0.7616]
[1732045308756,3.64620673,3133.8,3133.4,0.31914]
[1732045308952,6.83723673,3133.8,3133.3,0.7616]
[1732045309268,1.00282367,3133.7,3133.3,1.08075]
[1732045309473,1.00282367,3133.7,3133.4,0.31913]
[1732045309668,6.19087,3134.0,3133.4,0.31913]
[1732045310468,3.0,3134.0,3133.5,0.31913]
[1732045310674,3.0,3134.0,3132.6,0.06382466]
[1732045310675,3.0,3134.0,3133.7,0.7616]
[1732045310897,6.19101,3133.8,3133.7,0.7616]
[1732045311061,3.19112,3133.7,3133.3,0.7616]
[1732045311261,6.19107,3133.8,3133.3,1.08075]
[1732045311495,0.3,3133.8,3133.4,0.31914]
[1732045311875,3.3,3133.8,3133.4,0.31914]
[1732045312597,3.3,3133.8,3133.3,1.08075]
[1732045313258,6.49109,3133.8,3133.3,0.7616]
[1732045313463,0.07887467,3134.3,3133.3,0.7616]
[1732045313661,0.6988,3135.0,3134.0,0.7798]
[1732045313864,3.19027,3134.6,3134.0,1.09887]
[1732045314063,0.33308399,3134.4,3134.0,0.7798]
[1732045314301,3.19047,3134.4,3134.0,0.7798]
[1732045314484,3.19055,3134.3,3134.0,0.7798]
[1732045314663,3.3309399,3134.5,3134.0,0.7798]
[1732045314863,3.1904,3134.4,3134.0,0.7798]
[1732045315779,3.19067,3134.2,3134.0,0.7798]
[1732045316365,3.1904,3134.4,3134.0,0.7798]
[1732045317074,3.19066,3134.2,3133.8,0.7621]
[1732045317803,3.19041,3134.4,3133.8,0.7621]
[1732045318023,3.19041,3134.4,3133.9,0.31908]
[1732045318303,3.19055,3134.3,3133.8,0.7621]
[1732045318813,6.5212999,3134.5,3133.9,0.31909]
[1732045318969,3.19051,3134.3,3133.9,0.171939]
[1732045319177,3.19051,3134.3,3133.8,0.7621]
[1732045319501,3.19062,3134.2,3133.8,0.7621]
[1732045319708,3.19052,3134.3,3133.8,0.7621]
[1732045320071,0.1405699,3134.5,3133.8,0.7621]
[1732045320303,3.19054,3134.3,3133.8,0.7621]
[1732045320619,6.5213099,3134.5,3133.9,0.31909]
[1732045320858,3.19052,3134.3,3133.8,1.0812]
[1732045320978,3.19052,3134.3,3133.8,1.4003]
[1732045321185,3.19041,3134.4,3133.8,0.7621]
[1732045321385,3.3308899,3134.5,3133.9,0.31908]
[1732045322132,0.1405699,3134.5,3133.9,0.31908]
[1732045322285,3.3308899,3134.5,3134.0,0.31908]
[1732045322481,3.3308899,3134.5,3133.9,0.31908]
[1732045322914,0.1405699,3134.5,3134.2,0.31905]
[1732045323130,0.1405699,3134.5,3134.3,0.8321]
[1732045323327,3.1904,3134.4,3134.3,0.8321]
[1732045323498,3.3309499,3134.5,3134.0,0.8321]
[1732045323841,3.3309499,3134.5,3134.0,1.15117]
[1732045324198,0.1405699,3134.5,3134.0,0.8321]
[1732045324533,3.3309499,3134.5,3134.0,1.15118]
[1732045324835,3.19062,3134.2,3133.7,0.31911]
[1732045325131,3.1904,3134.4,3133.8,1.15119]
[1732045325502,3.1904,3134.4,3133.9,0.31908]
[1732045325708,3.19051,3134.3,3133.8,0.8321]
[1732045326312,3.19051,3134.3,3133.9,0.31909]
[1732045326740,3.19051,3134.3,3133.8,0.8321]
[1732045326945,3.3308699,3134.5,3133.8,1.15119]
[1732045327114,0.1405699,3134.5,3133.9,0.31908]
[1732045327439,3.3308799,3134.5,3133.9,0.31908]
[1732045327645,3.19051,3134.3,3133.8,0.8321]
[1732045327807,3.19051,3134.3,3133.8,1.15119]
[1732045328004,3.19061,3134.2,3133.8,0.8321]
[1732045328434,0.1405699,3134.5,3133.8,0.8321]
[1732045328633,3.1904,3134.4,3133.8,0.8321]
[1732045328859,3.1906,3134.2,3133.8,0.8321]
[1732045329069,3.1904,3134.4,3133.9,0.31908]
[1732045329234,3.1904,3134.4,3133.8,0.8321]
[1732045329435,6.38132,3134.2,3133.8,0.8321]
[1732045329758,3.19062,3134.2,3133.8,0.8321]
[1732045330168,3.1905,3134.3,3133.8,0.8321]
[1732045330681,3.19063,3134.2,3133.8,0.8321]
[1732045331733,3.19045,3134.4,3133.8,1.15119]
[1732045331734,3.19056,3134.3,3133.8,1.15119]
[1732045331962,3.19109,3133.8,3133.5,0.7995]
[1732045332702,3.1912,3133.7,3133.5,0.7995]
[1732045333269,3.19107,3133.8,3133.5,0.7995]
[1732045333597,3.19093,3133.9,3133.5,0.7995]
[1732045333904,3.19101,3133.8,3133.5,0.7995]
[1732045334077,3.19096,3133.9,3133.5,0.7995]
[1732045334403,3.19101,3133.8,3133.5,0.7995]
[1732045334908,3.19113,3133.7,3133.5,0.7995]
[1732045335870,0.638209,3133.7,3133.1,0.7672]
[1732045336068,3.19157,3133.3,3132.9,0.7672]
[1732045336488,3.19174,3133.1,3132.9,0.7672]
[1732045337065,3.19163,3133.2,3132.9,0.7672]
[1732045337292,3.19166,3133.2,3132.9,0.7672]
[1732045337499,3.89028,3133.4,3132.9,0.7672]
[1732045337769,3.19148,3133.4,3132.9,0.7672]
[1732045338128,3.19148,3133.4,3132.9,1.08639]
[1732045338313,0.388981,3133.7,3133.0,0.31918]
[1732045338533,3.19127,3133.6,3133.0,0.31918]
[1732045338873,3.19132,3133.5,3133.0,0.31917]
[1732045339270,3.19127,3133.6,3132.9,0.7672]
[1732045339486,3.19146,3133.4,3132.9,0.7672]
[1732045339704,3.1914,3133.5,3133.0,0.31918]
[1732045339903,3.19127,3133.6,3133.1,1.11666]
[1732045340311,3.0,3133.7,3133.1,0.7975]
[1732045340624,3.19158,3133.3,3133.1,0.7975]
[1732045340993,0.77885498,3133.9,3132.7,0.3192]
[1732045340994,3.19162,3133.2,3132.7,1.08851]
[1732045341387,3.19174,3133.1,3132.7,0.7693]
[1732045341586,3.89028,3133.4,3132.7,0.7693]
[1732045341790,3.19152,3133.3,3132.8,0.3192]
[1732045342293,3.19162,3133.2,3132.7,0.7693]
[1732045342689,3.19173,3133.1,3132.7,0.7693]
[1732045342886,3.19182,3133.1,3132.7,0.7693]
[1732045343239,3.19228,3132.6,3132.4,0.8105]
[1732045343535,3.19219,3132.7,3132.4,0.8105]
[1732045343536,3.19233,3132.5,3132.4,0.8105]
[1732045343835,3.19233,3132.5,3132.1,0.8105]
[1732045344441,3.19218,3132.7,3132.1,1.12977]
[1732045344628,3.19218,3132.7,3132.2,0.31926]
[1732045345329,3.19218,3132.7,3132.1,0.8105]
[1732045345695,3.19224,3132.6,3132.1,1.12977]
[1732045345901,3.19218,3132.7,3132.2,0.31925]
[1732045346327,3.0,3133.0,3131.8,0.7757]
[1732045346647,0.01,3134.0,3132.7,0.8267]
[1732045346648,3.0,3133.2,3132.7,0.8267]
[1732045347020,3.0,3133.2,3132.8,0.31919]
[1732045347342,6.19163,3133.2,3132.7,0.8267]
[1732045347706,3.19172,3133.1,3132.7,0.8267]
[1732045347908,6.19163,3133.2,3132.7,0.8267]
[1732045348150,9.38332,3133.2,3132.7,1.14591]
[1732045348451,6.19163,3133.2,3132.7,1.14591]
[1732045348755,3.19185,3133.0,3132.7,0.8267]
[1732045349120,4.00819,3133.2,3132.7,0.8267]
[1732045349330,3.19173,3133.1,3132.7,0.8267]
[1732045350010,3.19183,3133.0,3132.7,0.8267]
[1732045350710,3.19196,3132.9,3132.7,0.8267]
[1732045350908,6.38402,3132.9,3132.3,0.31924]
[1732045351245,3.19204,3132.8,3132.3,0.31924]
[1732045351752,3.19188,3133.0,3132.4,0.31923]
[1732045351918,3.19199,3132.9,3132.3,0.63848]
[1732045352250,3.192,3132.9,3132.2,0.7786]
[1732045352419,3.192,3132.9,3132.3,0.31924]
[1732045352916,3.19214,3132.7,3132.2,0.7786]
[1732045353121,3.19204,3132.8,3132.3,0.31925]
[1732045353845,0.6988,3132.7,3132.2,0.7786]
[1732045354157,3.19225,3132.6,3132.2,0.7786]
[1732045355151,3.19254,3132.3,3132.2,0.7786]
[1732045355359,3.19254,3132.3,3131.8,0.7958]
[1732045356168,3.19254,3132.3,3131.8,1.1151]
[1732045356857,3.19254,3132.3,3131.8,0.7958]
[1732045357361,3.19239,3132.5,3131.8,1.1151]
[1732045357561,3.19239,3132.5,3131.9,0.31928]
[1732045357868,3.19219,3132.7,3132.1,0.31927]
[1732045358208,3.19219,3132.7,3132.2,0.7729]
[1732045358349,3.19245,3132.4,3132.2,0.7729]
[1732045358541,3.19254,3132.3,3131.8,1.1292]
[1732045361868,3.19267,3132.2,3131.8,0.8099]
[1732045362090,3.19244,3132.4,3131.9,0.31929]
[1732045362380,3.19254,3132.3,3131.8,0.8099]
[1732045362538,3.0,3132.8,3131.8,0.8099]
[1732045362745,3.1927,3132.2,3131.8,0.8099]
[1732045365066,3.19286,3132.0,3131.8,0.8099]
[1732045365382,3.1927,3132.2,3131.8,0.8099]
[1732045365560,3.19276,3132.1,3131.8,0.8099]
[1732045366580,3.1927,3132.2,3131.8,0.8099]
[1732045368080,3.19247,3132.4,3131.9,0.31929]
[1732045368386,3.19193,3132.9,3132.1,0.7886]
[1732045368387,0.6988,3132.9,3132.1,0.7886]
[1732045368688,3.19233,3132.5,3132.1,0.7886]
[1732045368871,3.19245,3132.4,3132.1,0.7886]
[1732045369071,3.1926,3132.3,3132.1,0.7886]
[1732045369255,3.19264,3132.2,3131.9,0.7886]
[1732045369463,3.193,3131.9,3131.7,0.7886]
[1732045370460,3.19287,3132.0,3131.7,0.7886]
[1732045371297,0.47505644,3132.0,3131.5,0.7886]
[1732045371447,3.19336,3131.5,3131.1,0.7886]
[1732045374890,3.19315,3131.7,3131.2,0.31935]
[1732045375113,3.19315,3131.7,3131.1,0.7886]
[1732045375268,3.19332,3131.6,3131.1,0.7886]
[1732045375471,3.19332,3131.6,3131.1,1.10797]
[1732045377254,3.19325,3131.6,3131.1,0.7886]
[1732045377605,3.19335,3131.5,3131.1,0.7886]
[1732045378297,3.19311,3131.8,3131.1,0.7886]
[1732045378459,3.19391,3131.0,3130.8,0.7566]
[1732045378997,6.38786,3131.0,3130.6,0.7566]
[1732045379194,3.19391,3131.0,3130.6,0.7566]
[1732045379403,3.19389,3131.0,3130.6,0.7566]
[1732045379978,3.19376,3131.1,3130.6,0.7566]
[1732045380190,3.19392,3131.0,3130.6,0.7566]
[1732045380394,3.19378,3131.1,3130.6,0.7566]
[1732045380557,3.0,3131.3,3130.8,0.3194]
[1732045380756,3.0,3131.3,3130.9,0.7993]
[1732045381201,3.0,3131.5,3130.9,1.11869]
[1732045381361,3.0,3131.3,3130.9,1.11869]
[1732045381560,3.0,3131.4,3130.9,0.7993]
[1732045381804,3.19326,3131.6,3131.0,0.31937]
[1732045382009,3.19332,3131.6,3131.0,0.31937]
[1732045382186,3.19332,3131.6,3131.1,0.31937]
[1732045382385,3.19332,3131.6,3131.0,0.31937]
[1732045382588,3.19332,3131.6,3130.9,0.7993]
[1732045382787,3.19361,3131.3,3130.9,0.7993]
[1732045382990,3.19385,3131.1,3130.9,0.7993]
[1732045383307,3.19365,3131.3,3130.6,0.7895]
[1732045383517,3.19382,3131.1,3130.6,0.7895]
[1732045383913,3.19382,3131.1,3130.6,1.10892]
[1732045384221,3.19358,3131.3,3130.7,0.63882]
[1732045384373,3.19358,3131.3,3130.6,1.42833]
[1732045384582,3.19373,3131.2,3130.6,1.42833]
[1732045384907,3.19373,3131.2,3130.7,0.63883]
[1732045385223,4.202159,3131.3,3130.7,0.63882]
[1732045385384,3.19358,3131.3,3130.8,0.6388]
[1732045386226,3.19358,3131.3,3130.8,1.2776]
[1732045386387,3.19358,3131.3,3130.8,0.6388]
[1732045386719,6.89219,3131.5,3130.8,0.6388]
[1732045386720,3.19341,3131.5,3131.0,0.773]
[1732045386885,3.0,3131.6,3131.0,0.773]
[1732045387082,3.0,3131.6,3131.1,0.63874]
[1732045387430,0.01,3132.0,3130.9,0.63877]
[1732045387431,0.6988,3132.1,3131.4,0.8135]
[1732045387729,3.19323,3131.7,3131.4,0.8135]
[1732045387939,3.19351,3131.4,3130.9,0.8135]
[1732045388088,0.6988,3131.5,3130.9,0.8135]
[1732045388302,3.19347,3131.4,3130.9,1.45229]
[1732045388506,3.19347,3131.4,3130.9,0.8135]
[1732045388507,6.38702,3131.4,3130.9,0.8135]
[1732045388738,3.19367,3131.2,3130.9,0.8135]
[1732045388940,6.38707,3131.4,3130.9,0.8135]
[1732045389204,3.19365,3131.3,3130.9,0.8135]
[1732045389404,6.3873,3131.3,3130.9,0.8135]
[1732045389645,3.19365,3131.3,3130.9,0.8135]
[1732045389850,3.19368,3131.2,3130.9,0.8135]
[1732045390541,3.19396,3131.0,3129.9,0.63899]
[1732045390845,3.19413,3130.8,3130.1,0.63895]
[1732045391048,3.19407,3130.8,3130.1,0.63895]
[1732045391219,3.19407,3130.8,3130.3,0.6389]
[1732045391731,3.89269,3131.0,3130.3,0.6389]
[1732045391929,3.1941,3130.8,3130.3,0.6389]
[1732045392449,3.89269,3131.0,3130.4,1.43939]
[1732045392635,6.19382,3131.1,3130.6,0.63885]
[1732045392821,6.19382,3131.1,3130.6,1.27769]
[1732045393029,3.19352,3131.4,3130.8,0.6388]
[1732045393358,3.89211,3131.6,3131.0,0.63875]
[1732045393644,3.89211,3131.6,3131.1,0.207802]
[1732045393645,3.19336,3131.5,3131.1,0.207802]
[1732045393811,3.19336,3131.5,3130.9,0.8005]
[1732045393812,6.38679,3131.5,3130.9,0.8005]
[1732045394012,3.19351,3131.4,3130.9,1.43929]
[1732045394212,3.19367,3131.2,3130.9,0.8005]
[1732045394422,3.19367,3131.2,3130.7,1.43032]
[1732045394714,3.19367,3131.2,3130.7,0.7915]
[1732045395230,3.19367,3131.2,3130.7,2.06915]
[1732045395553,3.19372,3131.2,3130.7,0.7915]
[1732045395728,3.19351,3131.4,3130.8,0.63881]
[1732045395913,3.6988,3131.7,3130.7,0.7915]
[1732045396112,6.19331,3131.6,3131.1,0.63874]
[1732045396339,3.19347,3131.4,3131.0,0.7822]
[1732045396853,6.38701,3131.4,3131.0,0.7822]
[1732045397062,3.19357,3131.3,3131.0,0.7822]
[1732045397278,3.19433,3130.6,3130.2,0.8099]
[1732045397546,3.19439,3130.5,3130.2,0.8099]
[1732045398149,3.89303,3130.7,3130.2,0.8099]
[1732045398347,3.19428,3130.6,3130.2,0.8099]
[1732045399018,3.19414,3130.8,3130.3,0.63891]
[1732045399214,3.0,3130.9,3130.4,0.63889]
[1732045399715,3.0,3130.9,3130.3,0.63891]
[1732045399916,6.19397,3130.9,3130.3,0.63891]
[1732045400220,3.19414,3130.8,3130.2,1.44883]
[1732045400450,3.19436,3130.6,3130.2,0.8099]
[1732045401511,0.938784,3130.9,3130.2,0.8099]
[1732045401717,3.19445,3130.5,3129.8,0.7764]
[1732045402015,3.19447,3130.4,3129.8,1.41541]
[1732045402415,6.38903,3130.4,3129.8,1.41541]
[1732045402713,3.1946,3130.3,3129.8,1.41541]
[1732045402913,3.19473,3130.2,3129.8,0.7764]
[1732045403150,0.319447,3130.3,3129.8,0.7764]
[1732045403348,3.19478,3130.1,3129.8,0.7764]
[1732045403555,3.19473,3130.2,3129.8,0.7764]
[1732045404221,3.19492,3130.0,3129.5,1.40347]
[1732045404561,3.19473,3130.2,3129.5,1.40347]
[1732045404562,3.19487,3130.1,3129.5,1.40347]
[1732045404847,3.19495,3130.0,3129.5,0.7644]
[1732045405160,3.6988,3130.6,3129.2,0.7573]
[1732045405161,3.19525,3129.7,3129.2,0.7573]
[1732045405754,3.19529,3129.6,3129.2,0.7573]
[1732045406110,3.19514,3129.8,3129.2,1.39643]
[1732045406314,4.213355,3129.9,3129.3,0.63911]
[1732045406555,7.408425,3129.9,3129.3,0.63911]
[1732045406723,3.19509,3129.8,3129.2,0.7573]
[1732045407078,3.19509,3129.8,3129.2,1.39643]
[1732045408088,4.213355,3129.9,3129.3,0.6391]
[1732045408382,6.19489,3130.0,3129.4,0.63909]
[1732045409078,3.19501,3129.9,3129.4,0.63909]
[1732045409280,3.19501,3129.9,3129.2,1.39642]
[1732045409453,3.19509,3129.8,3129.2,0.7573]
[1732045409787,3.19535,3129.6,3129.2,0.7573]
[1732045409952,3.89415,3129.6,3129.0,0.8028]
[1732045410157,3.89415,3129.6,3129.0,1.44198]
[1732045410958,0.6988,3129.6,3129.2,0.63912]
[1732045411161,3.19513,3129.8,3129.2,0.63912]
[1732045411579,3.19513,3129.8,3129.2,1.27824]
[1732045411782,3.19513,3129.8,3129.3,0.8317]
[1732045411957,6.19492,3130.0,3129.4,0.63909]
[1732045412157,9.38989,3130.0,3129.4,0.63909]
[1732045412351,7.21173383,3130.0,3129.4,0.63909]
[1732045412888,7.21173383,3130.0,3129.5,0.63907]
[1732045413072,3.0,3130.1,3129.5,0.63907]
[1732045413457,6.89351,3130.2,3129.6,0.63905]
[1732045413784,3.19478,3130.1,3129.3,0.8317]
[1732045413971,3.19515,3129.8,3129.3,0.8317]
[1732045414755,3.19524,3129.7,3129.3,0.8317]
[1732045415366,3.19535,3129.6,3129.3,0.8317]
[1732045417113,3.19545,3129.5,3129.3,0.8317]
[1732045417391,3.19527,3129.7,3129.1,1.39185]
[1732045417783,3.1954,3129.5,3129.1,0.7527]
[1732045417957,3.19535,3129.6,3129.1,0.7527]
[1732045418157,3.514965,3129.5,3129.1,0.7527]
[1732045418396,3.19553,3129.4,3129.1,0.7527]
[1732045418900,3.19553,3129.4,3128.8,0.7615]
[1732045419197,3.19577,3129.2,3128.8,0.7615]
[1732045419707,3.515347,3129.2,3128.8,0.7615]
[1732045419997,0.319535,3129.5,3128.8,0.7615]
[1732045420197,3.0,3129.2,3128.8,0.7615]
[1732045420705,6.19576,3129.2,3128.8,0.7615]
[1732045421768,6.19576,3129.2,3128.6,1.44836]
[1732045422176,3.0,3129.2,3128.6,1.44836]
[1732045422683,3.0,3129.2,3128.7,0.63923]
[1732045422887,3.0,3129.2,3128.8,0.63921]
[1732045423099,3.6988,3129.3,3128.8,0.63921]
[1732045423894,6.8944,3129.3,3128.8,0.63921]
[1732045424072,7.91136821,3129.3,3128.6,0.8091]
[1732045424394,7.91136821,3129.3,3128.7,0.63923]
[1732045425611,3.19571,3129.2,3128.7,0.63923]
[1732045425897,3.19571,3129.2,3128.6,1.44834]
[1732045426671,3.19571,3129.2,3128.6,0.8091]
[1732045426885,3.19571,3129.2,3128.7,0.63924]
[1732045428659,4.30641382,3129.2,3128.7,0.63924]
[1732045428860,3.19591,3129.0,3128.6,0.8091]
[1732045429369,3.19609,3128.9,3128.4,0.8281]
[1732045429570,3.19616,3128.8,3128.4,0.8281]
[1732045429965,3.19609,3128.9,3128.4,0.8281]
[1732045430179,3.19627,3128.7,3128.4,0.8281]
[1732045430504,3.0,3129.0,3128.4,0.8281]
[1732045430671,3.0,3128.8,3128.4,0.8281]
[1732045431002,3.0,3129.2,3128.5,0.63928]
[1732045431201,3.0,3129.2,3128.6,0.63925]
[1732045431362,0.689445,3129.1,3128.5,0.63928]
[1732045431692,3.19602,3128.9,3128.4,0.8281]
[1732045431898,3.0,3128.8,3128.4,0.8281]
[1732045432060,3.19631,3128.7,3128.2,1.39994]
[1732045433070,3.19638,3128.6,3128.2,0.7606]
[1732045433274,3.19622,3128.7,3128.2,0.7606]
[1732045433478,3.19622,3128.7,3128.2,1.39994]
[1732045433787,3.6988,3128.8,3128.3,0.63932]
[1732045433984,3.6988,3129.0,3128.5,0.63928]
[1732045434192,6.19591,3129.0,3128.5,0.63927]
[1732045434377,6.19591,3129.0,3128.6,0.8018]
[1732045435190,3.0,3129.0,3128.6,0.8018]
[1732045435390,4.009054,3129.0,3128.6,0.8018]
[1732045436500,4.009054,3129.0,3128.6,1.44106]
[1732045437778,7.204964,3129.0,3128.6,0.8018]
[1732045438016,4.009054,3129.0,3128.6,0.8018]
[1732045438223,3.19606,3128.9,3128.6,0.8018]
[1732045438396,3.0,3128.8,3128.6,0.8018]
[1732045439709,3.0,3129.0,3128.6,0.8018]
[1732045439912,6.885395,3129.0,3128.6,0.8018]
[1732045440290,3.689465,3129.0,3128.6,0.8018]
[1732045440488,0.6988,3129.5,3128.6,0.8018]
[1732045440916,3.19575,3129.2,3128.6,1.44106]
[1732045441224,3.19593,3129.0,3128.6,0.8018]
[1732045441525,3.19589,3129.1,3128.6,0.8018]
[1732045442179,3.19617,3128.8,3128.6,0.8018]
[1732045442386,3.19582,3129.1,3128.6,0.8018]
[1732045442620,3.0,3129.0,3128.6,0.8018]
[1732045443230,6.19574,3129.2,3128.7,0.63924]
[1732045443388,6.62493752,3129.2,3128.7,0.63924]
[1732045444320,3.0803106,3129.3,3128.9,0.63919]
[1732045444497,3.19571,3129.2,3129.0,0.7575]
[1732045444702,3.0,3129.1,3128.7,0.7575]
[1732045444892,3.19596,3129.0,3128.7,0.7575]
[1732045445097,3.0,3128.9,3128.7,0.7575]
[1732045445489,3.0,3129.0,3128.7,0.7575]
[1732045445691,3.619571,3129.1,3128.7,0.7575]
[1732045446117,6.815381,3129.1,3128.7,0.7575]
[1732045446428,0.619571,3129.1,3128.8,0.63921]
[1732045446634,0.619571,3129.1,3128.7,0.7575]
[1732045446932,3.0,3129.2,3128.8,0.63922]
[1732045447227,3.19562,3129.3,3128.8,0.63922]
[1732045447228,3.0,3129.3,3128.8,0.63922]
[1732045447407,3.639117,3129.3,3128.7,1.39673]
[1732045447907,3.0,3129.1,3128.7,1.39673]
[1732045449323,0.639117,3129.3,3128.8,0.63921]
[1732045449524,3.0,3129.2,3128.8,0.63921]
[1732045449727,3.0,3129.2,3128.7,1.39673]
[1732045450032,3.0,3129.2,3128.8,0.63922]
[1732045450537,0.78041096,3129.6,3128.7,0.7575]
[1732045450734,3.19582,3129.1,3128.7,0.7575]
[1732045450916,7.09052,3129.1,3128.5,1.44927]
[1732045451093,0.81036154,3129.0,3128.5,1.44927]
[1732045451289,0.81036154,3129.0,3128.5,0.81]
[1732045451529,3.0,3129.2,3127.5,0.65947]
[1732045451530,3.0,3129.2,3128.9,0.81]
[1732045452043,3.19586,3129.1,3128.9,0.81]
[1732045452325,3.19586,3129.1,3128.6,0.63924]
[1732045452326,3.19586,3129.1,3128.7,0.81]
[1732045452490,3.19589,3129.1,3128.7,0.81]
[1732045452691,3.19605,3128.9,3128.4,0.81]
[1732045452900,3.0,3128.8,3128.4,0.81]
[1732045454294,3.19626,3128.7,3128.4,0.81]
[1732045454697,6.19612,3128.8,3128.4,0.81]
[1732045455009,3.0,3128.8,3128.4,0.81]
[1732045455210,6.85585679,3128.8,3128.4,0.81]
[1732045455858,3.19631,3128.7,3128.4,0.81]
[1732045456397,3.65970679,3128.8,3128.4,0.81]
[1732045456597,6.85584679,3128.8,3128.4,0.81]
[1732045457022,3.19621,3128.7,3128.4,0.81]
[1732045457228,4.00518868,3128.7,3128.4,0.81]
[1732045457430,7.20139868,3128.7,3128.4,0.81]
[1732045457628,1.00518868,3128.7,3128.4,0.81]
[1732045457943,6.19612,3128.8,3128.4,0.81]
[1732045458425,3.0,3128.8,3128.4,0.81]
[1732045458628,3.0,3129.2,3128.6,0.63925]
[1732045458825,3.0,3129.0,3128.4,1.44929]
[1732045459039,3.1963,3128.7,3128.4,0.81]
[1732045459198,0.31963,3128.6,3128.4,0.81]
[1732045459604,3.1963,3128.7,3128.4,0.81]
[1732045459839,3.19607,3128.9,3128.4,0.81]
[1732045460043,3.0,3129.0,3128.5,0.63928]
[1732045460202,3.3,3129.1,3128.5,0.63928]
[1732045460406,3.19555,3129.4,3127.9,0.63939]
[1732045460719,3.19566,3129.3,3128.8,1.39981]
[1732045460917,3.19566,3129.3,3128.9,0.203903]
[1732045461121,3.19566,3129.3,3128.8,0.7606]
[1732045461348,3.19566,3129.3,3128.8,1.39981]
[1732045462352,3.19552,3129.4,3128.9,0.63919]
[1732045462525,3.0,3129.3,3128.9,0.63919]
[1732045463246,3.19561,3129.3,3128.8,0.7606]
[1732045463433,3.0,3129.2,3128.8,0.7606]
[1732045463745,3.815317,3129.2,3128.8,0.7606]
[1732045463918,3.19588,3129.1,3128.8,0.7606]
[1732045465362,3.0,3129.3,3128.8,0.7606]
[1732045465642,6.3915,3129.2,3128.8,0.7606]
[1732045466252,4.13486,3129.2,3128.8,0.7606]
[1732045466955,0.93915,3129.2,3128.8,0.7606]
[1732045467170,3.0,3129.3,3128.9,0.63918]
[1732045467527,6.19541,3129.5,3129.2,0.7677]
[1732045467727,3.1955,3129.4,3129.2,0.7677]
[1732045468264,3.1956,3129.3,3129.2,0.7677]
[1732045468423,3.1956,3129.3,3128.8,0.7758]
[1732045468626,3.1956,3129.3,3128.8,1.415]
[1732045469319,3.0,3129.5,3128.9,0.63919]
[1732045469653,3.19557,3129.4,3128.9,0.63919]
[1732045469853,3.19557,3129.4,3128.8,1.415]
[1732045470228,3.19561,3129.3,3128.8,0.7758]
[1732045470913,3.19557,3129.4,3128.8,0.7758]
[1732045471050,3.19582,3129.1,3128.8,0.7758]
[1732045471226,3.19566,3129.3,3128.8,0.7758]
[1732045471419,3.19574,3129.2,3128.8,0.7758]
[1732045471665,3.19566,3129.3,3128.8,0.7758]
[1732045471976,3.1958,3129.2,3128.8,0.7758]
[1732045472530,3.19584,3129.1,3128.8,0.7758]
[1732045472879,3.0,3129.2,3128.8,0.7758]
[1732045473021,6.815316,3129.2,3128.8,0.7758]
[1732045474351,3.619566,3129.2,3128.8,0.7758]
[1732045474551,3.19535,3129.6,3129.0,0.7735]
[1732045474773,6.19541,3129.5,3129.0,0.7735]
[1732045474929,6.19541,3129.5,3129.0,1.41267]
[1732045475327,3.19559,3129.4,3129.0,0.7735]
[1732045475650,6.884831,3129.5,3129.0,0.7735]
[1732045475840,6.884831,3129.5,3129.0,1.41267]
[1732045476570,10.080311,3129.5,3129.0,1.41267]
[1732045476865,3.19555,3129.4,3129.0,0.7735]
[1732045477067,6.884831,3129.5,3129.0,1.41267]
[1732045477286,3.1955,3129.4,3129.0,0.7735]
[1732045477568,3.19553,3129.4,3129.0,0.7735]
[1732045477870,3.19598,3129.0,3128.7,0.8039]
[1732045478175,3.19575,3129.2,3128.7,1.44314]
[1732045478324,3.1958,3129.1,3128.7,0.8039]
[1732045478749,3.61612761,3129.2,3128.7,0.8039]
[1732045478961,3.19601,3129.0,3128.7,0.8039]
[1732045479172,3.19602,3128.9,3128.7,0.8039]
[1732045479555,3.1958,3129.1,3128.7,0.8039]
[1732045480173,3.1957,3129.2,3128.7,1.44314]
[1732045480381,3.0,3129.3,3128.7,0.8039]
[1732045480554,3.19611,3128.8,3128.7,0.8039]
[1732045480763,3.19601,3128.9,3128.2,0.63934]
[1732045480991,3.19623,3128.7,3128.3,0.8225]
[1732045481149,6.39251,3128.7,3128.3,0.8225]
[1732045481356,6.19573,3129.2,3128.3,0.8225]
[1732045481357,3.19606,3128.9,3128.3,1.46182]
[1732045481552,3.19629,3128.7,3128.3,0.8225]
[1732045481872,3.19632,3128.6,3128.3,0.8225]
[1732045482218,3.19629,3128.7,3128.3,0.8225]
[1732045482784,3.0,3128.8,3128.3,1.46182]
[1732045483090,3.0,3128.8,3128.3,0.8225]
[1732045483264,6.19597,3129.0,3128.4,2.10108]
[1732045483477,6.19597,3129.0,3128.5,0.63928]
[1732045483673,6.19597,3129.0,3128.4,1.46179]